[Event "Torneo Nuevo Centro. Jornada 10"]
[Site "Chess.com"]
[Date "2020.08.21"]
[Round "5"]
[White "Orts Tomás, Marc"]
[Black "Sampedro Roig, Josep Francesc"]
[Result "0-1"]
[WhiteElo "1853"]
[BlackElo "1833"]
[TimeControl "180+2"]
[EndTime "11:27:22 PDT"]
[Termination "Victoria de Abrekurios por abandono"]

1. c4 {[%clk 0:03:01.9]} 1... Nf6 {[%clk 0:03:01.9]} 2. Nf3 {[%clk 0:03:00.9]}
2... g6 {[%clk 0:03:01.2]} 3. g3 {[%clk 0:03:01.9]} 3... Bg7 {[%clk 0:03:02.2]}
4. Bg2 {[%clk 0:03:03.3]} 4... O-O {[%clk 0:03:03.1]} 5. O-O {[%clk 0:03:04.4]}
5... d6 {[%clk 0:03:02]} 6. Nc3 {[%clk 0:03:05.3]} 6... c6 {[%clk 0:03:01.5]} 7.
Rb1 {[%clk 0:03:05.8]} 7... a5 {[%clk 0:03:02.2]} 8. a3 {[%clk 0:03:06.7]} 8...
Nbd7 {[%clk 0:02:58.7]} 9. b4 {[%clk 0:03:07.5]} 9... axb4 {[%clk 0:02:59.2]}
10. axb4 {[%clk 0:03:09.4]} 10... e5 {[%clk 0:02:59.3]} 11. d3 {[%clk
0:03:05.9]} 11... Re8 {[%clk 0:02:57.5]} 12. b5 {[%clk 0:03:06]} 12... Qc7
{[%clk 0:02:57.4]} 13. Qb3 {[%clk 0:03:01.8]} 13... e4 {[%clk 0:02:40.3]} 14.
Nxe4 {[%clk 0:02:49.2]} 14... Nxe4 {[%clk 0:02:40.4]} 15. dxe4 {[%clk
0:02:51.1]} 15... Nc5 {[%clk 0:02:41.5]} 16. Qc2 {[%clk 0:02:45.7]} 16... Nxe4
{[%clk 0:02:35.9]} 17. Bb2 {[%clk 0:02:30.8]} 17... Ra2 {[%clk 0:02:27.7]} 18.
Qb3 {[%clk 0:02:23.4]} 18... Rxb2 {[%clk 0:02:23]} 19. Rxb2 {[%clk 0:02:20.6]}
19... Bxb2 {[%clk 0:02:21.1]} 20. Qxb2 {[%clk 0:02:22.5]} 20... Qe7 {[%clk
0:02:11.7]} 21. Nd4 {[%clk 0:02:19.1]} 21... Bd7 {[%clk 0:02:08]} 22. Ra1 {[%clk
0:01:51.7]} 22... Qe5 {[%clk 0:02:03.2]} 23. bxc6 {[%clk 0:01:00]} 23... bxc6
{[%clk 0:02:01.7]} 24. Ra7 {[%clk 0:00:58.5]} 24... Nc5 {[%clk 0:01:22.7]} 25.
Qd2 {[%clk 0:00:36.5]} 25... Rb8 {[%clk 0:01:05.8]} 26. h4 {[%clk 0:00:20.6]}
26... Rb6 {[%clk 0:00:56.3]} 27. Kh2 {[%clk 0:00:20.5]} 27... Kg7 {[%clk
0:00:55.6]} 28. Bf3 {[%clk 0:00:21.6]} 28... Bc8 {[%clk 0:00:39.6]} 29. Rc7
{[%clk 0:00:21.5]} 29... Ba6 {[%clk 0:00:39.4]} 30. Nxc6 {[%clk 0:00:21.3]}
30... Qb2 {[%clk 0:00:34]} 31. Qxb2+ {[%clk 0:00:21.1]} 31... Rxb2 {[%clk
0:00:34.7]} 32. Na5 {[%clk 0:00:20.4]} 32... Ra2 {[%clk 0:00:34.7]} 33. Nc6
{[%clk 0:00:18.1]} 33... Bxc4 {[%clk 0:00:33.4]} 34. Re7 {[%clk 0:00:16.8]}
34... Ne6 {[%clk 0:00:28]} 35. Kg2 {[%clk 0:00:11.7]} 35... Bxe2 {[%clk
0:00:26.8]} 36. Bd5 {[%clk 0:00:12.9]} 36... Bg4 {[%clk 0:00:24.3]} 37. Bxe6
{[%clk 0:00:11]} 37... Bxe6 {[%clk 0:00:25.1]} 38. Nd4 {[%clk 0:00:12.9]} 38...
Kf6 {[%clk 0:00:25.3]} 39. Rb7 {[%clk 0:00:11.7]} 39... Ra4 {[%clk 0:00:24.4]}
40. Nxe6 {[%clk 0:00:10.6]} 40... Kxe6 {[%clk 0:00:25.4]} 41. Rb6 {[%clk
0:00:10.8]} 41... Ra2 {[%clk 0:00:24.5]} 42. Kf3 {[%clk 0:00:11.5]} 42... Ra3+
{[%clk 0:00:25.3]} 43. Ke2 {[%clk 0:00:12.9]} 43... Ra2+ {[%clk 0:00:26.1]} 44.
Kf1 {[%clk 0:00:14.4]} 44... Ra5 {[%clk 0:00:24.9]} 45. Ke2 {[%clk 0:00:14.4]}
45... Rd5 {[%clk 0:00:25.8]} 46. Ke3 {[%clk 0:00:15.3]} 46... Rd1 {[%clk
0:00:26.1]} 47. Rb7 {[%clk 0:00:15.2]} 47... h5 {[%clk 0:00:26.5]} 48. Rb6
{[%clk 0:00:16.2]} 48... Ke5 {[%clk 0:00:26.9]} 49. Ke2 {[%clk 0:00:16.6]} 49...
Rd4 {[%clk 0:00:26.7]} 50. Rb7 {[%clk 0:00:17.5]} 50... f6 {[%clk 0:00:26.7]}
51. Rg7 {[%clk 0:00:17.5]} 51... Kf5 {[%clk 0:00:27.5]} 52. Rb7 {[%clk
0:00:17.2]} 52... Rd5 {[%clk 0:00:27.4]} 53. Ke3 {[%clk 0:00:17.8]} 53... Re5+
{[%clk 0:00:27.9]} 54. Kf3 {[%clk 0:00:19.2]} 54... d5 {[%clk 0:00:28.9]} 55.
Rd7 {[%clk 0:00:18.8]} 55... Ke6 {[%clk 0:00:27.9]} 56. Ra7 {[%clk 0:00:19.5]}
56... d4 {[%clk 0:00:28.2]} 57. Ra6+ {[%clk 0:00:20.5]} 57... Kd5 {[%clk
0:00:26.6]} 58. Ra8 {[%clk 0:00:20.7]} 58... Re6 {[%clk 0:00:27.5]} 59. Rd8+
{[%clk 0:00:21.1]} 59... Rd6 {[%clk 0:00:28.6]} 60. Ra8 {[%clk 0:00:22.9]} 60...
Ke5 {[%clk 0:00:28.3]} 61. Ke2 {[%clk 0:00:23.7]} 61... d3+ {[%clk 0:00:29]} 62.
Kd2 {[%clk 0:00:25.2]} 62... Ke4 {[%clk 0:00:30.1]} 63. Ra4+ {[%clk 0:00:25.6]}
63... Kf5 {[%clk 0:00:29.6]} 64. Rf4+ {[%clk 0:00:26.5]} 64... Ke5 {[%clk
0:00:30.8]} 65. Rc4 {[%clk 0:00:25.9]} 65... Rd5 {[%clk 0:00:26.5]} 66. Rc3
{[%clk 0:00:23.3]} 66... g5 {[%clk 0:00:26.9]} 67. hxg5 {[%clk 0:00:20]} 67...
fxg5 {[%clk 0:00:27.9]} 68. Rc4 {[%clk 0:00:21.9]} 68... Kf5 {[%clk 0:00:26.9]}
69. Rb4 {[%clk 0:00:20.9]} 69... Ke5 {[%clk 0:00:24.4]} 70. Rc4 {[%clk
0:00:21.7]} 70... Rd4 {[%clk 0:00:24.5]} 71. Rc5+ {[%clk 0:00:22.5]} 71... Kf6
{[%clk 0:00:25.7]} 72. Rc3 {[%clk 0:00:20.1]} 72... h4 {[%clk 0:00:26.2]} 73.
gxh4 {[%clk 0:00:20.3]} 73... gxh4 {[%clk 0:00:27.1]} 74. Rc8 {[%clk 0:00:22.2]}
74... Kg5 {[%clk 0:00:27.7]} 75. Rg8+ {[%clk 0:00:23]} 75... Kf4 {[%clk
0:00:28.4]} 76. Rh8 {[%clk 0:00:22.9]} 76... Kf3 {[%clk 0:00:28.9]} 77. Rxh4
{[%clk 0:00:23]} 77... Rxh4 {[%clk 0:00:29.4]} 0

[Event "Torneo Nuevo Centro. Jornada 10"]
[Site "Chess.com"]
[Date "2020.08.21"]
[Round "5"]
[White "Marques Montolio, Luis"]
[Black "Cebolla Ruiz, David"]
[Result "1/2-1/2"]
[WhiteElo "1437"]
[BlackElo "1544"]
[TimeControl "180+2"]
[EndTime "11:28:51 PDT"]
[Termination "Tablas por repeticiÃ³n"]

1. e4 {[%clk 0:03:01.4]} 1... c6 {[%clk 0:02:59.7]} 2. d4 {[%clk 0:03:00.6]}
2... d5 {[%clk 0:03:00.9]} 3. Nc3 {[%clk 0:03:02.5]} 3... Nf6 {[%clk 0:03:00.7]}
4. exd5 {[%clk 0:03:02.1]} 4... cxd5 {[%clk 0:02:59.3]} 5. Nb1 {[%clk
0:03:01.1]} 5... Bf5 {[%clk 0:02:56.5]} 6. Bd3 {[%clk 0:03:00.5]} 6... Bxd3
{[%clk 0:02:57]} 7. Qxd3 {[%clk 0:03:02.4]} 7... e6 {[%clk 0:02:58.4]} 8. Nf3
{[%clk 0:03:03.1]} 8... Nbd7 {[%clk 0:02:54.3]} 9. O-O {[%clk 0:03:03.3]} 9...
Be7 {[%clk 0:02:53.5]} 10. Re1 {[%clk 0:02:57.8]} 10... O-O {[%clk 0:02:53.7]}
11. Nbd2 {[%clk 0:02:56.3]} 11... Rc8 {[%clk 0:02:48.9]} 12. c3 {[%clk
0:02:56.3]} 12... Nb6 {[%clk 0:02:48.6]} 13. Nf1 {[%clk 0:02:54.2]} 13... Nc4
{[%clk 0:02:47.2]} 14. b3 {[%clk 0:02:50.8]} 14... Nd6 {[%clk 0:02:44.6]} 15.
Ne5 {[%clk 0:02:43.7]} 15... Nd7 {[%clk 0:02:41.7]} 16. Ng3 {[%clk 0:02:37.5]}
16... Nxe5 {[%clk 0:02:39.4]} 17. dxe5 {[%clk 0:02:36.5]} 17... Ne8 {[%clk
0:02:28.6]} 18. Nh5 {[%clk 0:02:27]} 18... Bg5 {[%clk 0:01:44.2]} 19. Qg3 {[%clk
0:02:19.1]} 19... Bxc1 {[%clk 0:01:37.5]} 20. Raxc1 {[%clk 0:02:18.5]} 20... g6
{[%clk 0:01:33.4]} 21. Re3 {[%clk 0:02:15.2]} 21... Ng7 {[%clk 0:01:32.4]} 22.
Nf6+ {[%clk 0:02:14]} 22... Kh8 {[%clk 0:01:32.4]} 23. Qg5 {[%clk 0:02:14.5]}
23... Nh5 {[%clk 0:01:12.6]} 24. Rh3 {[%clk 0:02:04.8]} 24... Nxf6 {[%clk
0:01:09]} 25. exf6 {[%clk 0:02:03.8]} 25... h5 {[%clk 0:01:03.7]} 26. Rf3 {[%clk
0:02:02.6]} 26... Kh7 {[%clk 0:00:53.7]} 27. g4 {[%clk 0:02:02.1]} 27... Rg8
{[%clk 0:00:46.8]} 28. Rh3 {[%clk 0:01:49.7]} 28... Rg7 {[%clk 0:00:25.1]} 29.
gxh5 {[%clk 0:01:39.7]} 29... Kg8 {[%clk 0:00:17.6]} 30. Kh1 {[%clk 0:01:20]}
30... Rc5 {[%clk 0:00:15.8]} 31. h6 {[%clk 0:01:12.4]} 31... Rh7 {[%clk
0:00:16.6]} 32. c4 {[%clk 0:01:02.7]} 32... b6 {[%clk 0:00:15.7]} 33. Qf4 {[%clk
0:00:55.8]} 33... dxc4 {[%clk 0:00:14.5]} 34. bxc4 {[%clk 0:00:53.2]} 34... Qc7
{[%clk 0:00:13.4]} 35. Qxc7 {[%clk 0:00:52.7]} 35... Rxc7 {[%clk 0:00:14.1]} 36.
Kg2 {[%clk 0:00:52.5]} 36... b5 {[%clk 0:00:15.1]} 37. c5 {[%clk 0:00:49.6]}
37... Rc6 {[%clk 0:00:13.4]} 38. f4 {[%clk 0:00:46]} 38... Kf8 {[%clk
0:00:12.4]} 39. Kf3 {[%clk 0:00:46.4]} 39... Ke8 {[%clk 0:00:12.9]} 40. Ke4
{[%clk 0:00:44]} 40... Kd7 {[%clk 0:00:13.7]} 41. Kd4 {[%clk 0:00:44.6]} 41...
Kc7 {[%clk 0:00:14]} 42. Rb1 {[%clk 0:00:39.8]} 42... a6 {[%clk 0:00:14.6]} 43.
a3 {[%clk 0:00:38.3]} 43... Kd7 {[%clk 0:00:15]} 44. Re1 {[%clk 0:00:37]} 44...
Kc7 {[%clk 0:00:14.8]} 45. Re5 {[%clk 0:00:37.5]} 45... a5 {[%clk 0:00:14.6]}
46. Kc3 {[%clk 0:00:37.1]} 46... Kb7 {[%clk 0:00:14.3]} 47. Kb3 {[%clk
0:00:35.7]} 47... Ka6 {[%clk 0:00:13.5]} 48. Kb2 {[%clk 0:00:35.4]} 48... b4
{[%clk 0:00:14.2]} 49. axb4 {[%clk 0:00:34.2]} 49... axb4 {[%clk 0:00:15.2]} 50.
Kb3 {[%clk 0:00:35.3]} 50... Kb5 {[%clk 0:00:16.3]} 51. Re4 {[%clk 0:00:31]}
51... Rxc5 {[%clk 0:00:16.6]} 52. Rxb4+ {[%clk 0:00:31.6]} 52... Kc6 {[%clk
0:00:16.5]} 53. Ra4 {[%clk 0:00:25.3]} 53... Rb5+ {[%clk 0:00:15.7]} 54. Kc4
{[%clk 0:00:24.4]} 54... Rb7 {[%clk 0:00:15.1]} 55. Kd4 {[%clk 0:00:21.5]} 55...
Kd6 {[%clk 0:00:15.3]} 56. Ra6+ {[%clk 0:00:20.5]} 56... Kd7 {[%clk 0:00:15.8]}
57. Ke4 {[%clk 0:00:20.9]} 57... Rb4+ {[%clk 0:00:15.9]} 58. Kf3 {[%clk
0:00:21.4]} 58... Rb7 {[%clk 0:00:15]} 59. Ke4 {[%clk 0:00:20.4]} 59... Rb4+
{[%clk 0:00:15.5]} 60. Kf3 {[%clk 0:00:20.2]} 60... Rb3+ {[%clk 0:00:16.7]} 61.
Kg4 {[%clk 0:00:20.9]} 61... Rxh3 {[%clk 0:00:17.5]} 62. Kxh3 {[%clk 0:00:22.8]}
62... Rxh6+ {[%clk 0:00:18.6]} 63. Kg3 {[%clk 0:00:23.8]} 63... Rh7 {[%clk
0:00:18.6]} 64. Ra7+ {[%clk 0:00:23.9]} 64... Kc6 {[%clk 0:00:19.6]} 65. Ra6+
{[%clk 0:00:21.8]} 65... Kb5 {[%clk 0:00:20.5]} 66. Ra7 {[%clk 0:00:21.6]} 66...
Kc5 {[%clk 0:00:20.6]} 67. Ra5+ {[%clk 0:00:21.8]} 67... Kc4 {[%clk 0:00:21.4]}
68. Ra7 {[%clk 0:00:22.1]} 68... Kd5 {[%clk 0:00:22.2]} 69. Rd7+ {[%clk
0:00:22.4]} 69... Ke4 {[%clk 0:00:22.9]} 70. Re7 {[%clk 0:00:22.3]} 70... Kf5
{[%clk 0:00:23.2]} 71. Rd7 {[%clk 0:00:22.3]} 71... Kxf6 {[%clk 0:00:24.1]} 72.
Rd4 {[%clk 0:00:21.1]} 72... e5 {[%clk 0:00:24.3]} 73. fxe5+ {[%clk 0:00:20.7]}
73... Kxe5 {[%clk 0:00:25.1]} 74. Rf4 {[%clk 0:00:21.4]} 74... f5 {[%clk
0:00:25]} 75. h4 {[%clk 0:00:20.3]} 75... Rh5 {[%clk 0:00:22.6]} 76. Rf3 {[%clk
0:00:20.1]} 76... Rh6 {[%clk 0:00:20.6]} 77. Re3+ {[%clk 0:00:20.8]} 77... Kd4
{[%clk 0:00:21.3]} 78. Re6 {[%clk 0:00:21]} 78... Kd5 {[%clk 0:00:21.6]} 79. Re3
{[%clk 0:00:21]} 79... Kd4 {[%clk 0:00:22.5]} 80. Re8 {[%clk 0:00:21.7]} 80...
Rh7 {[%clk 0:00:22.9]} 81. Rd8+ {[%clk 0:00:21.8]} 81... Ke5 {[%clk 0:00:23.8]}
82. Re8+ {[%clk 0:00:22.6]} 82... Kf6 {[%clk 0:00:24.9]} 83. Rf8+ {[%clk
0:00:23.4]} 83... Ke5 {[%clk 0:00:25.5]} 84. Rg8 {[%clk 0:00:23.5]} 84... Rh6
{[%clk 0:00:25.5]} 85. Re8+ {[%clk 0:00:23.5]} 85... Kf6 {[%clk 0:00:26.7]} 86.
Rf8+ {[%clk 0:00:24.1]} 86... Ke7 {[%clk 0:00:27.6]} 87. Ra8 {[%clk 0:00:23.8]}
87... Kf6 {[%clk 0:00:27.3]} 88. Ra6+ {[%clk 0:00:24.3]} 88... Ke5 {[%clk
0:00:27.7]} 89. Ra5+ {[%clk 0:00:25.4]} 89... Ke4 {[%clk 0:00:28.5]} 90. Ra4+
{[%clk 0:00:25.9]} 90... Kd3 {[%clk 0:00:29.6]} 91. Ra3+ {[%clk 0:00:26.7]}
91... Kc4 {[%clk 0:00:30.7]} 92. Ra6 {[%clk 0:00:27]} 92... Kb5 {[%clk
0:00:31.1]} 93. Rf6 {[%clk 0:00:27.5]} 93... Kc5 {[%clk 0:00:31.3]} 94. Re6
{[%clk 0:00:27.2]} 94... Kd5 {[%clk 0:00:31.8]} 95. Re8 {[%clk 0:00:27.3]} 95...
Rh7 {[%clk 0:00:29.7]} 96. Rg8 {[%clk 0:00:27.7]} 96... Rh6 {[%clk 0:00:28.5]}
97. Re8 {[%clk 0:00:27.6]} 97... Rh5 {[%clk 0:00:24.7]} 98. Rg8 {[%clk
0:00:27.5]} 98... Rh6 {[%clk 0:00:24.1]} 99. Re8 {[%clk 0:00:27.3]} 1/2-1

[Event "Torneo Nuevo Centro. Jornada 10"]
[Site "Chess.com"]
[Date "2020.08.21"]
[Round "6"]
[White "Romera Navia, Alberto"]
[Black "Perrot, Fabien "]
[Result "1-0"]
[WhiteElo "1788"]
[BlackElo "1112"]
[TimeControl "180+2"]
[EndTime "11:30:43 PDT"]
[Termination "Victoria de ARomera por abandono"]

1. e4 {[%clk 0:03:00.6]} 1... e5 {[%clk 0:02:53.6]} 2. Bc4 {[%clk 0:02:59.7]}
2... Nf6 {[%clk 0:02:52.5]} 3. Nf3 {[%clk 0:02:57.6]} 3... d6 {[%clk 0:02:51]}
4. Ng5 {[%clk 0:02:55.9]} 4... Be6 {[%clk 0:02:46.6]} 5. Bxe6 {[%clk 0:02:52.1]}
5... fxe6 {[%clk 0:02:47.7]} 6. Nxe6 {[%clk 0:02:54]} 6... Qd7 {[%clk
0:02:43.2]} 7. Nxf8 {[%clk 0:02:54]} 7... Kxf8 {[%clk 0:02:45.1]} 8. d3 {[%clk
0:02:54.7]} 8... Kf7 {[%clk 0:02:46.3]} 9. h3 {[%clk 0:02:55]} 9... Rf8 {[%clk
0:02:47.5]} 10. g4 {[%clk 0:02:55.7]} 10... Ng8 {[%clk 0:02:49]} 11. Bg5 {[%clk
0:02:54.3]} 11... h6 {[%clk 0:02:49]} 12. Bh4 {[%clk 0:02:54.1]} 12... g6 {[%clk
0:02:50.4]} 13. Qf3+ {[%clk 0:02:54.4]} 13... Kg7 {[%clk 0:02:50.3]} 14. Qe3
{[%clk 0:02:54.4]} 14... g5 {[%clk 0:02:50.4]} 15. Bg3 {[%clk 0:02:55.2]} 15...
Qxg4 {[%clk 0:02:49.2]} 16. hxg4 {[%clk 0:02:55.3]} 1

[Event "Torneo Nuevo Centro. Jornada 10"]
[Site "Chess.com"]
[Date "2020.08.21"]
[Round "6"]
[White "Ainsa Jimenez, Lucas"]
[Black "Fitzpatrick Dimas, Kevin"]
[Result "1-0"]
[WhiteElo "1151"]
[BlackElo "857"]
[TimeControl "180+2"]
[EndTime "11:32:08 PDT"]
[Termination "Victoria de ainsaluck por abandono"]

1. e4 {[%clk 0:03:01.9]} 1... e5 {[%clk 0:02:55.1]} 2. Bc4 {[%clk 0:03:00.8]}
2... Nf6 {[%clk 0:02:54.4]} 3. Nf3 {[%clk 0:02:55.9]} 3... Bc5 {[%clk
0:02:44.9]} 4. Nc3 {[%clk 0:02:47.7]} 4... Nc6 {[%clk 0:02:33.8]} 5. Ng5 {[%clk
0:02:44.9]} 5... O-O {[%clk 0:02:28.7]} 6. d3 {[%clk 0:02:40.3]} 6... Ng4 {[%clk
0:02:21.7]} 7. Qxg4 {[%clk 0:02:39.3]} 7... d6 {[%clk 0:02:21.6]} 8. Qf3 {[%clk
0:02:32.4]} 8... Nd4 {[%clk 0:02:13.7]} 9. Qh5 {[%clk 0:02:14.8]} 9... h6 {[%clk
0:02:11.1]} 10. Nxf7 {[%clk 0:02:13.7]} 10... Rxf7 {[%clk 0:02:09.5]} 11. Qxf7+
{[%clk 0:02:11.6]} 11... Kh7 {[%clk 0:02:09.7]} 12. O-O {[%clk 0:02:05]} 12...
Be6 {[%clk 0:02:06.2]} 13. Bxe6 {[%clk 0:02:01.7]} 13... Nxe6 {[%clk 0:02:06.4]}
14. Qxe6 {[%clk 0:02:00.2]} 1

[Event "Torneo Nuevo Centro. Jornada 10"]
[Site "Chess.com"]
[Date "2020.08.21"]
[Round "6"]
[White "Aymerich Rosell, Pablo"]
[Black "Sampedro Roig, Josep Francesc"]
[Result "1-0"]
[WhiteElo "1982"]
[BlackElo "1828"]
[TimeControl "180+2"]
[EndTime "11:32:32 PDT"]
[Termination "Victoria de jasikevic por abandono"]

1. e4 {[%clk 0:03:01.9]} 1... Nf6 {[%clk 0:03:01.9]} 2. e5 {[%clk 0:03:02]} 2...
Nd5 {[%clk 0:03:03]} 3. d4 {[%clk 0:03:03]} 3... d6 {[%clk 0:03:04.1]} 4. c4
{[%clk 0:03:03.8]} 4... Nb6 {[%clk 0:03:05.3]} 5. exd6 {[%clk 0:03:04.6]} 5...
cxd6 {[%clk 0:03:06.4]} 6. Nc3 {[%clk 0:03:04.3]} 6... g6 {[%clk 0:03:08.3]} 7.
Be3 {[%clk 0:03:04.9]} 7... Bg7 {[%clk 0:03:09.9]} 8. Rc1 {[%clk 0:03:05.1]}
8... O-O {[%clk 0:03:11.4]} 9. b3 {[%clk 0:03:05.9]} 9... Nc6 {[%clk 0:03:12.8]}
10. d5 {[%clk 0:03:03.1]} 10... e5 {[%clk 0:03:14.1]} 11. dxc6 {[%clk
0:03:03.3]} 11... bxc6 {[%clk 0:03:10.6]} 12. c5 {[%clk 0:03:01.6]} 12... Nd5
{[%clk 0:02:48.6]} 13. Nxd5 {[%clk 0:03:01]} 13... cxd5 {[%clk 0:02:49.5]} 14.
Qxd5 {[%clk 0:02:58.7]} 14... Rb8 {[%clk 0:02:42.3]} 15. Qxd6 {[%clk 0:02:56.6]}
15... Qa5+ {[%clk 0:02:42.7]} 16. Qd2 {[%clk 0:02:54.6]} 16... Qa3 {[%clk
0:02:33]} 17. Bc4 {[%clk 0:02:48.5]} 17... Bf5 {[%clk 0:02:32.7]} 18. Nf3 {[%clk
0:02:40.1]} 18... Rfd8 {[%clk 0:02:33]} 19. Qe2 {[%clk 0:02:32.9]} 19... Kh8
{[%clk 0:02:15.7]} 20. O-O {[%clk 0:02:30.2]} 20... e4 {[%clk 0:02:05.2]} 21.
Ng5 {[%clk 0:02:30.4]} 1

[Event "Torneo Nuevo Centro. Jornada 10"]
[Site "Chess.com"]
[Date "2020.08.21"]
[Round "6"]
[White "Donate Peris, Jose Manuel"]
[Black "Méndez Giménez , Néstor Emmanuel"]
[Result "1-0"]
[WhiteElo "1535"]
[BlackElo "1235"]
[TimeControl "180+2"]
[EndTime "11:32:43 PDT"]
[Termination "Victoria de cheryme por jaque mate"]

1. d4 {[%clk 0:03:01.9]} 1... e6 {[%clk 0:03:00.2]} 2. e4 {[%clk 0:03:02.2]}
2... d5 {[%clk 0:03:00.3]} 3. e5 {[%clk 0:03:00.3]} 3... Nc6 {[%clk 0:02:58.8]}
4. c3 {[%clk 0:02:53.7]} 4... b6 {[%clk 0:02:56.2]} 5. f4 {[%clk 0:02:53.9]}
5... Bb7 {[%clk 0:02:55.3]} 6. Nf3 {[%clk 0:02:54.5]} 6... f6 {[%clk 0:02:53.2]}
7. Bd3 {[%clk 0:02:51.9]} 7... fxe5 {[%clk 0:02:47.9]} 8. fxe5 {[%clk
0:02:50.8]} 8... Be7 {[%clk 0:02:47.2]} 9. O-O {[%clk 0:02:49.5]} 9... Na5
{[%clk 0:02:42.1]} 10. Na3 {[%clk 0:02:43.1]} 10... c5 {[%clk 0:02:41.6]} 11.
dxc5 {[%clk 0:02:30.2]} 11... Bxc5+ {[%clk 0:02:40.2]} 12. Kh1 {[%clk 0:02:31]}
12... d4 {[%clk 0:02:35.9]} 13. cxd4 {[%clk 0:02:27.8]} 13... Bxd4 {[%clk
0:02:36]} 14. Qa4+ {[%clk 0:02:27.7]} 14... Nc6 {[%clk 0:02:30.6]} 15. Bb5
{[%clk 0:02:20.4]} 15... Qd7 {[%clk 0:02:16]} 16. Bxc6 {[%clk 0:02:18.5]} 16...
Bxc6 {[%clk 0:02:16.6]} 17. Qxd4 {[%clk 0:02:18.6]} 17... Bxf3 {[%clk
0:02:13.2]} 18. Qxd7+ {[%clk 0:02:18.5]} 18... Kxd7 {[%clk 0:02:13.8]} 19. Rxf3
{[%clk 0:02:18.8]} 19... Nh6 {[%clk 0:02:11.9]} 20. Bxh6 {[%clk 0:02:17.9]}
20... gxh6 {[%clk 0:02:11.8]} 21. Rd1+ {[%clk 0:02:18.1]} 21... Kc6 {[%clk
0:02:11.4]} 22. Rc3+ {[%clk 0:02:17.8]} 22... Kb7 {[%clk 0:02:09.6]} 23. Nc4
{[%clk 0:02:11]} 23... Rad8 {[%clk 0:02:09]} 24. Nd6+ {[%clk 0:02:10.8]} 24...
Ka6 {[%clk 0:02:09.6]} 25. Ra3# {[%clk 0:02:10.2]} 1

[Event "Torneo Nuevo Centro. Jornada 10"]
[Site "Chess.com"]
[Date "2020.08.21"]
[Round "6"]
[White "Ursariu, Nikolas Victor"]
[Black "Alvarez Usina, Jordi"]
[Result "1-0"]
[WhiteElo "1143"]
[BlackElo "1274"]
[TimeControl "180+2"]
[EndTime "11:32:44 PDT"]
[Termination "Victoria de NikolasVictor por abandono"]

1. e4 {[%clk 0:03:01.9]} 1... e5 {[%clk 0:03:00.1]} 2. Nf3 {[%clk 0:03:03.1]}
2... Nf6 {[%clk 0:03:00]} 3. Nxe5 {[%clk 0:03:01.5]} 3... Bc5 {[%clk 0:02:49.7]}
4. Nc3 {[%clk 0:02:57.5]} 4... d6 {[%clk 0:02:49]} 5. Nf3 {[%clk 0:02:56.7]}
5... Ng4 {[%clk 0:02:47.4]} 6. Qe2 {[%clk 0:02:31.7]} 6... Bxf2+ {[%clk
0:02:37.5]} 7. Kd1 {[%clk 0:02:30.6]} 7... Bc5 {[%clk 0:02:33.1]} 8. d4 {[%clk
0:02:28.1]} 8... Bb6 {[%clk 0:02:28.4]} 9. Bf4 {[%clk 0:02:24.6]} 9... O-O
{[%clk 0:02:26]} 10. Qe1 {[%clk 0:02:17.6]} 10... Qf6 {[%clk 0:02:06.8]} 11. Qg3
{[%clk 0:02:13.2]} 11... h6 {[%clk 0:02:02.4]} 12. h3 {[%clk 0:02:08.8]} 1

[Event "Torneo Nuevo Centro. Jornada 10"]
[Site "Chess.com"]
[Date "2020.08.21"]
[Round "6"]
[White "Gukasov, Artem"]
[Black "Hassomal Daswani, Birjkumar"]
[Result "0-1"]
[WhiteElo "1455"]
[BlackElo "1807"]
[TimeControl "180+2"]
[EndTime "11:32:51 PDT"]
[Termination "Victoria de daz000007 por abandono"]

1. e4 {[%clk 0:03:01.9]} 1... c5 {[%clk 0:02:52.9]} 2. Nf3 {[%clk 0:03:02.3]}
2... e6 {[%clk 0:02:50.8]} 3. d4 {[%clk 0:02:53.3]} 3... cxd4 {[%clk 0:02:51.3]}
4. Nxd4 {[%clk 0:02:52.5]} 4... Bc5 {[%clk 0:02:52.3]} 5. Be3 {[%clk 0:02:45.8]}
5... Qb6 {[%clk 0:02:52.5]} 6. b3 {[%clk 0:02:38.5]} 6... Nc6 {[%clk 0:02:51.2]}
7. c3 {[%clk 0:02:28.4]} 7... Nf6 {[%clk 0:02:42.7]} 8. f3 {[%clk 0:02:26.7]}
8... e5 {[%clk 0:02:37.6]} 9. Nf5 {[%clk 0:02:13.8]} 9... Bxe3 {[%clk
0:02:33.7]} 10. Nd6+ {[%clk 0:02:12.8]} 10... Kf8 {[%clk 0:02:18.5]} 11. Qd3
{[%clk 0:01:55.9]} 11... Bf2+ {[%clk 0:01:58.7]} 12. Ke2 {[%clk 0:01:51.5]}
12... Bc5 {[%clk 0:01:55.5]} 13. b4 {[%clk 0:01:41.3]} 13... Bxd6 {[%clk
0:01:54.9]} 14. Qxd6+ {[%clk 0:01:42]} 14... Kg8 {[%clk 0:01:55.9]} 15. g4
{[%clk 0:01:40.3]} 15... Nd4+ {[%clk 0:01:56.4]} 16. cxd4 {[%clk 0:01:40.8]}
16... Qxd6 {[%clk 0:01:57.1]} 0

[Event "Torneo Nuevo Centro. Jornada 10"]
[Site "Chess.com"]
[Date "2020.08.21"]
[Round "6"]
[White "Hernández Tomás, Efrén"]
[Black "Rabbani Perez, Oumaima "]
[Result "1-0"]
[WhiteElo "1107"]
[BlackElo "718"]
[TimeControl "180+2"]
[EndTime "11:33:21 PDT"]
[Termination "Victoria de EfrenHT10 por jaque mate"]

1. e4 {[%clk 0:03:01.9]} 1... e6 {[%clk 0:02:56.5]} 2. Nf3 {[%clk 0:03:00.9]}
2... Nf6 {[%clk 0:02:56.2]} 3. e5 {[%clk 0:03:00.9]} 3... Ng4 {[%clk 0:02:53.4]}
4. h3 {[%clk 0:03:00.6]} 4... Nh6 {[%clk 0:02:50.5]} 5. d3 {[%clk 0:03:00.3]}
5... Nf5 {[%clk 0:02:49.5]} 6. d4 {[%clk 0:02:49.8]} 6... Bb4+ {[%clk 0:02:44]}
7. c3 {[%clk 0:02:44]} 7... Be7 {[%clk 0:02:42.9]} 8. Bd3 {[%clk 0:02:43.1]}
8... O-O {[%clk 0:02:33.4]} 9. Bxf5 {[%clk 0:02:43.3]} 9... exf5 {[%clk
0:02:30.8]} 10. Qd3 {[%clk 0:02:42.6]} 10... g6 {[%clk 0:02:28.8]} 11. O-O
{[%clk 0:02:33.8]} 11... d6 {[%clk 0:02:24.3]} 12. Bh6 {[%clk 0:02:32.5]} 12...
Re8 {[%clk 0:02:22.8]} 13. exd6 {[%clk 0:02:29.2]} 13... Bxd6 {[%clk 0:02:16]}
14. Ng5 {[%clk 0:02:25.3]} 14... Qe7 {[%clk 0:02:08]} 15. Nd2 {[%clk 0:02:11]}
15... c6 {[%clk 0:02:08.7]} 16. Rae1 {[%clk 0:02:10.5]} 16... Bc7 {[%clk
0:02:03.1]} 17. Rxe7 {[%clk 0:02:08.9]} 17... Rxe7 {[%clk 0:02:00.2]} 18. Ndf3
{[%clk 0:01:55.4]} 18... Be6 {[%clk 0:01:59.1]} 19. Nxe6 {[%clk 0:01:54]} 19...
Rxe6 {[%clk 0:01:55.1]} 20. d5 {[%clk 0:01:51.3]} 20... Re8 {[%clk 0:01:49]} 21.
Qd4 {[%clk 0:01:47.6]} 21... Bb6 {[%clk 0:01:40.7]} 22. Qg7# {[%clk 0:01:44.5]}
1